bitfinex-derivatives/quotes_SOLF0:USTF0_20250623
["timestamp","ask_amount","ask_price","bid_price","bid_amount"]
[1750669726064,37.18,134.04,134.0,7.4607]
[1750669726264,7.4594,134.03,134.0,7.4607]
[1750669727070,7.46,134.02,134.0,7.4607]
[1750669727367,37.18,134.04,134.0,7.4607]
[1750669727559,7.4599,134.02,134.0,7.4607]
[1750669728369,7.4596,134.03,134.0,7.4607]
[1750669728571,7.4596,134.03,134.01,7.4604]
[1750669728874,7.4596,134.03,133.99,5.25006881]
[1750669729060,7.4596,134.03,134.01,12.71026881]
[1750669729770,37.18,134.04,133.97,37.16]
[1750669729771,44.6391,134.04,134.0,5.25006881]
[1750669730371,44.6391,134.04,134.01,7.4602]
[1750669730565,7.4594,134.03,134.01,7.4602]
[1750669733177,44.639,134.04,134.01,7.4602]
[1750669733371,22.3642,134.12,134.02,5.25006881]
[1750669733571,22.3642,134.12,134.0,37.16]
[1750669733572,41.7553,134.1,134.05,5.25006881]
[1750669733775,5.25006881,134.08,134.01,5.25006881]
[1750669734275,7.4593,134.04,134.01,5.25006881]
[1750669734475,37.16,134.05,134.01,5.25006881]
[1750669735167,39.5235,134.05,134.01,5.25006881]
[1750669735366,7.4599,134.02,134.01,5.25006881]
[1750669736079,7.4596,134.03,134.01,12.71046881]
[1750669736270,41.9228,134.05,134.01,5.25006881]
[1750669736973,7.4598,134.03,134.01,5.25006881]
[1750669737373,41.9228,134.05,134.01,5.25006881]
[1750669737779,7.4599,134.02,134.01,5.25006881]
[1750669739284,7.4604,134.01,133.99,5.25006881]
[1750669739788,7.4604,134.01,133.99,12.71156881]
[1750669740279,7.461,134.0,133.98,12.71206881]
[1750669740475,42.41006881,134.02,133.95,5.25006881]
[1750669740683,37.16,134.02,133.97,5.25006881]
[1750669740978,37.16,134.03,133.99,12.71136881]
[1750669741179,37.16,134.03,133.99,5.25006881]
[1750669741378,37.16,134.03,134.0,7.4609]
[1750669741778,7.4599,134.02,134.0,7.4609]
[1750669742180,37.16,134.03,134.0,7.4609]
[1750669743174,7.4599,134.02,134.0,7.4609]
[1750669745184,7.4599,134.02,133.99,5.25006881]
[1750669745185,37.16,134.04,134.01,7.46]
[1750669745680,37.16,134.04,134.01,5.25006881]
[1750669745886,44.619,134.04,134.02,7.4596]
[1750669746277,37.16,134.04,134.02,7.4596]
[1750669747779,37.16,134.04,134.01,5.25006881]
[1750669748287,44.6188,134.04,134.02,7.4595]
[1750669750892,44.6188,134.04,134.02,12.70956881]
[1750669752191,44.6188,134.04,134.02,5.25006881]
[1750669752492,7.4593,134.03,134.02,5.25006881]
[1750669754793,37.16,134.04,133.98,53.97880721]
[1750669754794,7.4602,134.02,134.0,7.4608]
[1750669755092,7.4602,134.02,134.01,5.25006881]
[1750669758490,37.16,134.04,133.99,5.25006881]
[1750669759195,44.79196881,134.04,133.97,5.25006881]
[1750669759396,5.0623632,134.03,133.96,5.25006881]
[1750669759890,5.25006881,134.02,133.96,5.25006881]
[1750669760089,37.16,134.01,133.96,5.25006881]
[1750669760593,7.4627,133.97,133.96,5.25006881]
[1750669761292,42.41006881,133.98,133.93,9.2762384]
[1750669761593,42.41006881,133.98,133.91,19.09567129]
[1750669761594,37.16,133.97,133.91,5.25006881]
[1750669761794,7.4643,133.95,133.92,7.4652]
[1750669762500,7.4643,133.95,133.92,12.71526881]
[1750669763694,7.4643,133.95,133.92,7.4652]
[1750669763895,7.4643,133.95,133.93,7.4649]
[1750669764594,7.4645,133.94,133.92,5.25006881]
[1750669765193,7.4645,133.94,133.92,7.4651]
[1750669767401,5.25006881,133.96,133.9,5.25006881]
[1750669767592,37.16,133.97,133.9,5.25006881]
[1750669767799,37.16,133.97,133.92,5.25006881]
[1750669768594,37.16,133.97,133.92,12.71526881]
[1750669769295,37.16,133.97,133.92,5.25006881]
[1750669770202,7.4652,133.93,133.91,12.71586881]
[1750669772704,7.4647,133.94,133.91,12.71586881]
[1750669772905,37.16,133.97,133.91,7.4658]
[1750669773104,37.16,133.97,133.92,5.25006881]
[1750669773905,37.16,133.97,133.92,12.71526881]
[1750669774609,7.4646,133.94,133.92,12.71526881]
[1750669775412,39.7633,133.99,133.92,5.25006881]
[1750669775603,39.7633,133.99,133.95,5.25006881]
[1750669776405,7.4629,133.97,133.95,12.71376881]
[1750669776604,7.4629,133.97,133.95,7.4637]
[1750669776802,39.7633,133.99,133.92,39.6457]
[1750669777011,39.7633,133.99,133.93,5.25006881]
[1750669777720,7.4636,133.96,133.94,7.4641]
[1750669778413,39.7633,133.99,133.93,12.71476881]
[1750669779318,7.4638,133.95,133.93,12.71476881]
[1750669779816,7.4635,133.96,133.94,7.4644]
[1750669780018,7.4635,133.96,133.94,5.25006881]
[1750669780420,7.4638,133.95,133.92,9.8309]
[1750669780619,7.4638,133.95,133.93,5.25006881]
[1750669780819,45.01336881,133.99,133.93,5.25006881]
[1750669781121,59.93656881,133.99,133.91,12.71576881]
[1750669781417,2.5269,133.98,133.91,12.71576881]
[1750669781921,5.25006881,133.97,133.88,2.4291]
[1750669782123,37.28,133.96,133.9,5.25006881]
[1750669782607,37.28,133.96,133.88,2.4291]
[1750669782813,37.28,133.96,133.89,5.25006881]
[1750669783014,7.63246881,133.95,133.89,5.25006881]
[1750669783409,7.4664,133.91,133.89,5.25006881]
[1750669783615,37.28,133.93,133.89,5.25006881]
[1750669783917,37.28,133.93,133.89,12.71696881]
[1750669784509,7.4663,133.91,133.89,12.71696881]
[1750669786120,37.28,133.93,133.89,12.71696881]
[1750669786121,7.4657,133.92,133.89,12.71696881]
[1750669787325,37.28,133.93,133.89,5.25006881]
[1750669787823,7.4666,133.9,133.88,12.71746881]
[1750669788721,7.4671,133.89,133.87,5.25006881]
[1750669788922,37.28,133.9,133.85,5.25006881]
[1750669789219,7.4682,133.88,133.85,12.71916881]
[1750669789413,7.4682,133.88,133.85,5.25006881]
[1750669789917,7.4674,133.89,133.85,5.25006881]
[1750669790719,7.4678,133.88,133.85,12.71916881]
[1750669790925,37.3,133.87,133.82,5.25006881]
[1750669791224,7.4691,133.86,133.82,5.25006881]
[1750669791618,37.3,133.88,133.84,5.25006881]
[1750669791925,7.4688,133.86,133.84,5.25006881]
[1750669792112,37.3,133.88,133.78,8.43160549]
[1750669792314,37.3,133.88,133.83,5.25006881]
[1750669793727,7.4696,133.85,133.83,5.25006881]
[1750669795327,7.4696,133.85,133.81,7.4712]
[1750669795529,7.4696,133.85,133.81,5.25006881]
[1750669796030,39.8269,133.88,133.83,5.25006881]
[1750669796525,39.8269,133.88,133.78,8.43160549]
[1750669796731,39.8269,133.88,133.83,5.25006881]
[1750669797134,7.4697,133.85,133.83,5.25006881]
[1750669797331,39.8269,133.88,133.81,5.25006881]
[1750669797630,42.2403,133.88,133.81,5.25006881]
[1750669797832,7.4696,133.85,133.82,7.471]
[1750669798133,7.4696,133.85,133.81,5.25006881]
[1750669798333,7.47,133.84,133.81,12.72136881]
[1750669798627,5.25006881,133.87,133.8,5.25006881]
[1750669798931,7.4708,133.83,133.8,12.72176881]
[1750669799134,37.6,133.84,133.8,12.72176881]
[1750669799430,7.4708,133.83,133.8,7.4717]
[1750669799630,7.4708,133.83,133.8,12.72176881]
[1750669800234,45.0702,133.84,133.81,7.4715]
[1750669800444,37.6,133.84,133.8,5.25006881]
[1750669800930,37.6,133.84,133.8,12.72186881]
[1750669801433,37.6,133.84,133.8,5.25006881]
[1750669801633,37.6,133.84,133.81,7.4711]
[1750669801841,37.6,133.84,133.8,5.25006881]
[1750669802224,45.0701,133.84,133.78,2.3864]
[1750669802426,45.0701,133.84,133.81,5.25006881]
[1750669802934,45.0701,133.84,133.81,12.72136881]
[1750669803836,37.6,133.84,133.82,7.471]
[1750669805932,7.4691,133.86,133.83,12.72056881]
[1750669807341,7.4694,133.85,133.83,5.25006881]
[1750669808040,7.4694,133.85,133.82,7.4708]
[1750669808242,7.4694,133.85,133.84,5.25006881]
[1750669809941,7.47,133.84,133.82,5.25006881]
[1750669810142,37.6,133.87,133.82,5.25006881]
[1750669810540,37.6,133.87,133.82,12.72066881]
[1750669811045,7.4694,133.85,133.83,7.4704]
[1750669811642,7.4694,133.85,133.82,5.25006881]
[1750669813143,7.47,133.84,133.82,5.25006881]
[1750669813345,37.6,133.87,133.82,5.25006881]
[1750669813547,37.6,133.87,133.84,5.25006881]
[1750669814038,37.6,133.87,133.85,5.25006881]
[1750669815346,37.6,133.87,133.84,5.25006881]
[1750669816152,7.4694,133.85,133.84,5.25006881]
[1750669817751,37.6,133.87,133.78,9.30888974]
[1750669818256,42.85006881,133.87,133.81,5.25006881]
[1750669819550,7.471,133.82,133.81,5.25006881]
[1750669822048,7.4717,133.81,133.79,7.4726]
[1750669822250,7.4717,133.81,133.8,5.25006881]
[1750669824656,7.4714,133.82,133.8,5.25006881]
[1750669825657,7.4714,133.82,133.8,12.17255855]
[1750669826556,7.4714,133.82,133.81,6.92248974]
[1750669827161,7.4707,133.83,133.81,6.92248974]
[1750669827555,42.85006881,133.87,133.81,6.92248974]
[1750669828266,7.471,133.83,133.81,6.92248974]
[1750669828453,42.85006881,133.87,133.81,6.92248974]
[1750669829356,42.85006881,133.87,133.81,12.17255855]
[1750669829557,37.6,133.87,133.81,12.17255855]
[1750669829852,7.4703,133.84,133.82,6.92248974]
[1750669830361,7.4701,133.83,133.82,6.92248974]
[1750669830562,37.6,133.87,133.82,6.92248974]
[1750669830953,7.4697,133.84,133.82,6.92248974]
[1750669831260,37.6,133.87,133.82,6.92248974]
[1750669831453,37.6,133.87,133.82,5.25006881]
[1750669831658,7.4699,133.83,133.82,5.25006881]
[1750669832556,7.4696,133.84,133.82,5.25006881]
[1750669833857,7.469,133.85,133.82,12.17255855]
[1750669834263,7.469,133.85,133.82,19.64275855]
[1750669836966,7.469,133.85,133.83,6.92248974]
[1750669837767,39.9869,133.88,133.84,5.25006881]
[1750669838363,39.9869,133.88,133.84,12.71936881]
[1750669839666,7.4679,133.87,133.84,12.71936881]
[1750669840169,7.4683,133.86,133.84,19.64185855]
[1750669840466,7.4683,133.86,133.84,12.17255855]
[1750669840965,7.468,133.87,133.84,19.64155855]
[1750669841165,39.9869,133.88,133.84,19.64155855]
[1750669841770,7.4678,133.87,133.84,19.64155855]
[1750669842067,39.9869,133.88,133.84,19.64155855]
[1750669842376,39.9869,133.88,133.84,12.17255855]
[1750669842967,7.4685,133.86,133.84,12.17255855]
[1750669843768,7.4685,133.86,133.84,19.64185855]
[1750669844166,7.468,133.87,133.84,19.64185855]
[1750669844664,39.9869,133.88,133.84,19.64185855]
[1750669844867,7.4678,133.87,133.84,19.64185855]
[1750669845659,7.4685,133.86,133.84,12.17255855]
[1750669846066,7.4685,133.86,133.84,19.64175855]
[1750669846268,7.4679,133.87,133.84,12.17255855]
[1750669846467,2.4899,133.89,133.86,5.25006881]
[1750669847068,7.4673,133.88,133.86,5.25006881]
[1750669847269,7.4673,133.88,133.86,12.71816881]
[1750669847670,7.4673,133.88,133.86,5.25006881]
[1750669848266,7.4677,133.87,133.86,5.25006881]
[1750669848672,7.4677,133.87,133.85,6.92248974]
[1750669848867,7.4674,133.88,133.86,5.25006881]
[1750669849574,7.4677,133.87,133.86,5.25006881]
[1750669850070,7.4677,133.87,133.85,14.39098974]
[1750669850372,7.4677,133.87,133.86,5.25006881]
[1750669851675,7.4674,133.88,133.86,5.25006881]
[1750669852475,7.4674,133.88,133.86,12.71826881]
[1750669853977,7.4677,133.87,133.85,14.39098974]
[1750669854178,7.4677,133.87,133.85,7.4685]
[1750669854380,7.4677,133.87,133.86,5.25006881]
[1750669854674,45.07116881,133.9,133.85,5.25006881]
[1750669854985,5.25006881,133.88,133.82,5.25006881]
[1750669855182,39.9141,133.87,133.82,5.25006881]
[1750669855681,42.84707489,133.87,133.82,5.25006881]
[1750669856578,42.84707489,133.87,133.78,39.8464]
[1750669856780,5.25006881,133.86,133.8,5.25006881]
[1750669856981,8.18245265,133.86,133.8,5.25006881]
[1750669858185,7.471,133.81,133.8,5.25006881]
[1750669858881,7.4707,133.82,133.8,5.25006881]
[1750669859183,37.36,133.83,133.8,5.25006881]
[1750669860081,37.36,133.83,133.79,5.25006881]
[1750669861285,37.36,133.83,133.77,9.30420407]
[1750669861486,37.36,133.83,133.8,5.25006881]
[1750669861786,44.8302,133.83,133.8,5.25006881]
[1750669862084,7.4702,133.83,133.8,12.72126881]
[1750669862284,7.4702,133.83,133.77,14.55427288]
[1750669862487,7.4702,133.83,133.81,5.25006881]
[1750669865292,7.4705,133.82,133.8,7.4713]
[1750669865488,2.3526,133.84,133.81,5.25006881]
[1750669865791,2.4541,133.87,133.83,5.25006881]
[1750669865978,40.286031,133.9,133.85,5.25006881]
[1750669866178,37.36,133.9,133.87,5.25006881]
[1750669866685,37.36,133.9,133.87,12.71766881]
[1750669866887,37.36,133.9,133.87,5.25006881]
[1750669867180,4.93,133.91,133.87,5.25006881]
[1750669867376,7.4668,133.89,133.87,5.25006881]
[1750669867877,4.93,133.91,133.87,5.25006881]
[1750669868077,2.4702,133.91,133.89,5.25006881]
[1750669868778,7.466,133.9,133.89,5.25006881]
[1750669870381,2.4702,133.91,133.87,5.25006881]
[1750669870792,7.4668,133.89,133.87,5.25006881]
[1750669871190,2.4702,133.91,133.87,5.25006881]
[1750669871784,7.4671,133.88,133.85,7.4685]
[1750669871993,7.4671,133.88,133.87,5.25006881]
[1750669876496,7.4684,133.86,133.85,5.25006881]
[1750669877594,7.468,133.87,133.85,5.25006881]
[1750669878394,7.468,133.87,133.84,7.4691]
[1750669878690,7.468,133.87,133.86,5.25006881]
[1750669879192,7.4685,133.86,133.83,7.4696]
[1750669879390,7.4685,133.86,133.85,5.25006881]
[1750669880895,7.468,133.87,133.85,5.25006881]
[1750669881893,7.468,133.87,133.85,12.71856881]
[1750669882196,37.36,133.89,133.86,5.25006881]
[1750669882594,7.4679,133.87,133.86,5.25006881]
[1750669883491,7.4674,133.88,133.86,5.25006881]
[1750669884799,7.4677,133.87,133.86,5.25006881]
[1750669885099,37.36,133.89,133.86,12.71826881]
[1750669885496,7.4675,133.88,133.86,5.25006881]
[1750669886202,7.4677,133.87,133.86,5.25006881]
[1750669888903,7.468,133.87,133.81,46.66420407]
[1750669889105,7.468,133.87,133.86,5.25006881]
[1750669891613,7.4674,133.88,133.86,5.25006881]
[1750669892116,7.4674,133.88,133.86,12.71826881]
[1750669892311,7.4674,133.88,133.86,7.4682]
[1750669892613,7.4674,133.88,133.87,5.25006881]
[1750669893116,44.8269,133.89,133.87,5.25006881]
[1750669893308,37.36,133.89,133.87,5.25006881]
[1750669894816,7.4671,133.88,133.87,5.25006881]
[1750669896217,7.4671,133.88,133.86,7.4682]
[1750669896518,7.4671,133.88,133.87,5.25006881]
[1750669900218,37.36,133.89,133.84,7.4691]
[1750669900418,37.36,133.89,133.85,5.25006881]
[1750669900817,7.4685,133.86,133.85,5.25006881]
[1750669901421,7.4679,133.87,133.85,12.71876881]
[1750669901821,37.36,133.89,133.85,5.25006881]
[1750669902721,7.4683,133.86,133.85,5.25006881]
[1750669904421,7.469,133.85,133.83,7.4697]
[1750669904622,7.469,133.85,133.84,5.25006881]
[1750669905025,7.4685,133.86,133.84,5.25006881]
[1750669905222,7.4685,133.86,133.85,5.25006881]
[1750669906722,2.4702,133.91,133.86,7.468]
[1750669907028,37.36,133.9,133.88,5.25006881]
[1750669907525,7.4671,133.89,133.88,5.25006881]
[1750669908526,44.8263,133.9,133.88,5.2675165]
[1750669909026,44.8263,133.9,133.88,12.7346165]
[1750669909415,44.8263,133.9,133.88,12.7347165]
[1750669909826,44.8263,133.9,133.89,5.2675165]
[1750669910328,7.4663,133.9,133.89,5.2675165]
[1750669910527,7.4663,133.9,133.89,5.26743947]
[1750669912933,7.4658,133.91,133.89,12.73403947]
[1750669913829,7.4658,133.91,133.89,5.26743947]
[1750669914026,7.466,133.9,133.89,5.26743947]
[1750669914230,7.466,133.9,133.89,3.37084287]
[1750669919936,8.51865296,133.93,133.89,3.37084287]
[1750669920237,682.32,133.95,133.92,3.37084287]
[1750669920425,8.51908429,133.94,133.87,37.28]
[1750669920630,37.28,133.95,133.93,3.37084287]
[1750669920830,37.28,133.95,133.94,3.37084287]
[1750669921030,53.25856919,133.95,133.94,3.37084287]
[1750669921231,50.31106255,133.95,133.94,3.37084287]
[1750669921432,53.25894855,133.95,133.94,3.37084287]
[1750669922037,7.4638,133.94,133.93,3.37084287]
[1750669922240,7.4638,133.94,133.92,5.26457565]
[1750669922438,5.40477926,133.97,133.92,5.26457565]
[1750669922740,39.5799,133.98,133.94,5.26457565]
[1750669922934,5.57103846,133.97,133.94,5.26457565]
[1750669923240,7.4622,133.97,133.94,12.72817565]
[1750669924037,37.28,134.03,133.96,5.26457565]
[1750669924241,5.5651311,134.02,133.99,5.26457565]
[1750669924538,13.0253311,134.01,133.99,5.26457565]
[1750669924738,7.4602,134.01,133.99,5.26457565]
[1750669925238,7.4597,134.02,133.99,5.26457565]
[1750669925440,37.28,134.03,134.01,5.26457565]
[1750669925739,7.4605,134.0,133.99,5.26457565]
[1750669926541,7.4602,134.01,133.99,5.26457565]
[1750669926840,37.28,134.03,133.99,5.26457565]
[1750669927141,37.28,134.03,133.97,7.4619]
[1750669927142,7.4605,134.0,133.97,7.4619]
[1750669927439,7.4605,134.0,133.99,5.26457565]
[1750669929739,7.4612,133.99,133.97,7.4619]
[1750669929938,37.28,134.03,133.98,5.26457565]
[1750669930333,37.28,134.03,133.99,5.26457565]
[1750669930534,37.28,134.03,134.01,5.26457565]
[1750669931031,7.4595,134.02,134.01,5.26457565]
[1750669931231,7.4595,134.02,133.98,7.4613]
[1750669931232,37.28,134.03,133.98,7.4613]
[1750669931440,37.28,134.03,134.0,5.26457565]
[1750669931840,7.4599,134.01,134.0,5.26457565]
[1750669932237,37.28,134.03,133.98,7.4613]
[1750669932238,7.4605,134.0,133.98,7.4613]
[1750669932442,7.4605,134.0,133.99,5.26457565]
[1750669934241,37.28,134.03,133.97,5.26457565]
[1750669935237,7.4616,133.98,133.97,5.26457565]
[1750669937242,7.4633,133.96,133.95,5.26457565]
[1750669943548,7.4639,133.94,133.92,7.4646]
[1750669943751,7.4639,133.94,133.93,5.26457565]
[1750669946457,37.26,133.97,133.91,42.52457565]
[1750669946653,37.26,133.97,133.91,5.26457565]
[1750669947551,7.4646,133.93,133.91,12.72997565]
[1750669949752,37.26,133.97,133.91,5.26457565]
[1750669950360,7.4644,133.93,133.91,12.72977565]
[1750669950656,7.4642,133.94,133.92,7.4649]
[1750669950857,37.26,133.97,133.93,5.26457565]
[1750669951056,4.7801,133.99,133.91,42.54457565]
[1750669951259,42.0601,133.99,133.95,5.26457565]
[1750669951460,42.0601,133.99,133.93,5.26457565]
[1750669951654,47.32467565,133.99,133.93,5.26457565]
[1750669951862,7.4638,133.95,133.93,5.26457565]
[1750669952659,7.4638,133.95,133.93,12.72887565]
[1750669954065,7.4638,133.95,133.93,5.26457565]
[1750669954460,7.4638,133.94,133.93,5.26457565]
[1750669955957,7.4644,133.93,133.92,5.26457565]
[1750669956463,7.4649,133.92,133.91,5.26457565]
[1750669956663,37.28,133.96,133.89,5.26457565]
[1750669957257,20.19117565,133.95,133.87,5.26457565]
[1750669957453,28.53422254,133.95,133.87,5.26457565]
[1750669957667,4.7757,133.94,133.87,5.26457565]
[1750669957855,7.467,133.89,133.87,12.73227565]
[1750669959060,7.4665,133.9,133.88,7.4672]
[1750669959364,7.4665,133.9,133.87,5.26457565]
[1750669959959,39.7889,133.93,133.81,11.60450407]
[1750669960160,37.28,133.9,133.86,5.26457565]
[1750669960559,7.4667,133.89,133.86,12.73247565]
[1750669960763,37.28,133.9,133.86,12.73247565]
[1750669960963,37.28,133.9,133.86,5.26457565]
[1750669962462,7.4677,133.87,133.86,5.26457565]
[1750669964063,7.4675,133.88,133.86,5.26457565]
[1750669965265,7.4669,133.89,133.86,7.4678]
[1750669965567,7.4669,133.89,133.87,5.26457565]
[1750669968967,44.7463,133.9,133.87,5.26457565]
[1750669969973,44.7463,133.9,133.88,7.4672]
[1750669970165,7.4663,133.9,133.88,7.4672]
[1750669970566,7.4657,133.91,133.88,7.4672]
[1750669970766,7.4657,133.91,133.89,5.26457565]
[1750669972479,7.4661,133.9,133.89,5.26457565]
[1750669974780,37.3,133.92,133.89,5.26457565]
[1750669974979,7.4656,133.91,133.89,5.26457565]
[1750669975382,7.4661,133.9,133.89,5.26457565]
[1750669977583,7.4668,133.89,133.87,5.26457565]
[1750669980385,42.0757,133.94,133.87,5.26457565]
[1750669980574,42.0757,133.94,133.92,5.26457565]
[1750669980888,37.3,133.94,133.92,5.26457565]
[1750669981482,44.7641,133.94,133.92,5.26457565]
[1750669982289,7.4644,133.93,133.92,5.26457565]
[1750669982889,44.7641,133.94,133.92,5.26457565]
[1750669984490,7.4644,133.93,133.9,7.4658]
[1750669984691,7.4644,133.93,133.91,5.26457565]
[1750669984892,37.3,133.94,133.91,5.26457565]
[1750669985193,44.7641,133.94,133.91,12.72987565]
[1750669985792,7.4635,133.95,133.93,5.26457565]
[1750669987793,39.6356,133.97,133.93,5.26457565]
[1750669988390,7.4634,133.95,133.93,5.26457565]
[1750669988795,37.3,133.97,133.93,5.26457565]
[1750669989002,37.3,133.97,133.95,5.26457565]
[1750669989003,44.7624,133.97,133.95,5.26457565]
[1750669991287,44.7624,133.97,133.94,7.4638]
[1750669991494,44.7624,133.97,133.95,5.26457565]
[1750669991893,7.4627,133.96,133.95,5.26457565]
[1750669992092,37.3,133.97,133.91,37.3]
[1750669992501,37.3,133.97,133.92,5.26457565]
[1750669992899,7.4643,133.94,133.92,5.26457565]
[1750669994200,7.4636,133.95,133.92,12.72947565]
[1750669995304,7.4639,133.94,133.92,5.26457565]
[1750669995806,7.4639,133.94,133.92,12.72947565]
[1750669996005,7.4636,133.95,133.92,12.72947565]
[1750669996807,7.4632,133.96,133.94,5.26457565]
[1750669997905,7.4633,133.95,133.94,5.26457565]
[1750670002505,7.463,133.96,133.94,5.26457565]
[1750670003202,44.7626,133.97,133.94,12.72827565]
[1750670004904,37.3,133.97,133.94,5.26457565]
[1750670005507,7.4633,133.95,133.94,5.26457565]
[1750670006009,37.3,133.97,133.94,5.26457565]
[1750670006211,7.4633,133.95,133.94,5.26457565]
[1750670007207,7.4633,133.95,133.91,44.7653]
[1750670007512,7.4641,133.94,133.93,5.26457565]
[1750670012816,7.4636,133.95,133.93,5.26457565]
[1750670015313,7.463,133.96,133.93,12.72897565]
[1750670018521,44.7625,133.97,133.95,5.26457565]
[1750670018723,37.3,133.97,133.95,5.26457565]
[1750670019214,44.7625,133.97,133.95,5.26457565]
[1750670019420,7.4625,133.97,133.95,5.26457565]
[1750670019626,42.3224,133.99,133.95,12.72787565]
[1750670019921,7.4621,133.98,133.95,12.72787565]
[1750670020324,7.4621,133.98,133.95,7.4633]
[1750670020518,7.4621,133.98,133.96,5.26457565]
[1750670021621,44.7414,133.99,133.96,12.72707565]
[1750670021821,37.28,133.99,133.98,5.26457565]
[1750670022022,37.28,134.02,133.98,5.26457565]
[1750670022425,42.86013409,134.02,133.98,5.26457565]
[1750670022619,7.4604,134.01,133.98,12.72627565]
[1750670025422,7.4606,134.0,133.98,5.26457565]
[1750670028829,7.4606,134.0,133.98,12.72617565]
[1750670031429,7.4603,134.01,133.99,7.4611]
[1750670032234,7.4603,134.01,133.94,37.28]
[1750670032426,7.4603,134.01,133.99,5.26457565]
[1750670033332,37.28,134.02,133.99,5.26457565]
[1750670033523,7.4606,134.0,133.99,5.26457565]
[1750670033932,42.85395589,134.02,133.97,5.26457565]
[1750670034130,5.26457565,133.99,133.94,5.26457565]
[1750670034332,37.26,133.98,133.91,39.5781]
[1750670034635,7.4636,133.95,133.93,5.26457565]
[1750670036838,7.4636,133.95,133.93,12.72897565]
[1750670037034,7.463,133.96,133.93,5.26457565]
[1750670038835,7.463,133.96,133.94,7.4638]
[1750670040339,7.4626,133.97,133.95,7.4633]
[1750670040838,37.26,133.98,133.94,5.26457565]
[1750670041836,37.26,133.98,133.96,5.26457565]
[1750670042338,7.4611,134.0,133.97,7.4621]
[1750670042531,42.82947804,134.01,133.97,7.4621]
[1750670042732,37.26,134.01,133.97,7.4621]
[1750670042935,42.83046414,134.01,133.97,7.4621]
[1750670043135,42.83046414,134.01,133.96,5.26457565]
[1750670043136,7.461,134.0,133.98,7.4617]
[1750670043344,37.26,134.01,133.91,54.14687972]
[1750670043542,37.26,134.01,133.96,5.26457565]
[1750670043739,7.4615,133.99,133.96,12.72717565]
[1750670044843,7.4618,133.98,133.96,12.72717565]
[1750670047338,7.4618,133.98,133.96,5.26457565]
[1750670048038,7.4618,133.98,133.96,12.72727565]
[1750670048239,7.4615,133.99,133.96,12.72727565]
[1750670049741,7.4615,133.99,133.97,7.4623]
[1750670050442,7.4615,133.99,133.97,5.26457565]
[1750670051042,7.462,133.98,133.97,5.26457565]
[1750670053845,37.26,133.98,133.94,5.26457565]
[1750670054439,7.4635,133.95,133.94,5.26457565]
[1750670057042,7.4635,133.96,133.94,5.26457565]
[1750670057245,7.4635,133.96,133.94,12.72877565]
[1750670057444,7.4635,133.96,133.94,5.26457565]
[1750670057645,7.4637,133.95,133.94,5.26457565]
[1750670057847,41.9627,133.98,133.94,5.26457565]
[1750670058050,47.56836307,133.98,133.94,5.26457565]
[1750670058946,41.9627,133.98,133.94,5.26457565]
[1750670059141,47.56900313,133.98,133.94,5.26457565]
[1750670059350,7.4639,133.95,133.93,7.4646]
[1750670059647,7.4639,133.95,133.93,5.26457565]
[1750670061338,7.4639,133.95,133.93,12.72957565]
[1750670062749,7.4637,133.96,133.93,5.26457565]
[1750670063250,7.4637,133.96,133.93,12.72927565]
[1750670063843,7.4632,133.97,133.94,7.4645]
[1750670064941,7.4632,133.97,133.94,7.4644]
[1750670067048,49.4253,133.98,133.95,5.26457565]
[1750670067251,44.7226,133.98,133.95,5.26457565]
[1750670067642,44.7226,133.98,133.91,51.82877972]
[1750670067643,37.26,133.98,133.94,5.26457565]
[1750670068148,37.26,133.98,133.94,12.72887565]
[1750670068851,7.4632,133.97,133.94,12.72887565]
[1750670069852,7.4637,133.96,133.93,7.4648]
[1750670070043,42.86811362,133.98,133.92,5.26354322]
[1750670070241,37.26,133.98,133.92,5.26354322]
[1750670070445,7.4642,133.95,133.92,12.72884322]
[1750670070851,37.26,133.98,133.91,37.26]
[1750670071049,5.60802443,133.97,133.9,5.26354322]